{"text_format":"1","workbook":"xlsx","n_sheets":2,"sheets":["CALCUL","Tables"],"not_rendered":{"charts":0,"images":0,"macros":1,"external_links":1,"defined_names":5,"comments":0,"pivot_tables":0},"unopened":[],"bounds":{"document_bytes":16777216,"sheet_cells":100000,"rows_first":2000,"rows_last":500,"rows_between":2000,"halvings":0,"cell_chars":16384,"cell_head_chars":4096},"cells_cut":0,"cells_raw":0,"read":"whole","date_system":"1900"}

{"sheet":"CALCUL","index":0,"n_rows":12,"n_cols":27,"rows_kept":12,"cut":false,"hidden":false,"merged":[[8,12,8,14],[10,12,10,14],[3,1,4,1],[3,17,4,17],[3,2,4,2],[3,3,3,8],[3,15,4,15],[3,16,4,16],[3,9,3,14]]}
[{"$f":"ROW()","v":1},null,null,null,null,null,null,null,null,null,null,null,null,null,null,null,null,null,null,null,null,null,null,null,null,null,7]
[{"$f":"ROW()","v":2}]
[{"$f":"ROW()","v":3}]
[{"$f":"ROW()","v":4},"EDITIONS","FORMATS","LOCALES",null,null,null,null,null,"VILLAGES",null,null,null,null,null,"TOTAL BRUT","REMISE","TOTAL NET"]
[{"$f":"ROW()","v":5},null,null,"Semaine","Qté","Sous-total","V.S.D.","Qté","Sous-total","Semaine","Qté","Sous-total","V.S.D.","Qté","Sous-total"]
[{"$f":"ROW()","v":6},"ALES","Double écran (L 192 x H 66)",{"$f":"IF(C6=\"\",\"\",IF(B6=Tables!$B$1,VLOOKUP(C6,Tables!$B$4:$F$37,2,FALSE),IF(B6=Tables!$H$1,VLOOKUP(C6,Tables!$H$3:$L$76,2,FALSE),IF(B6=Tables!$M$1,VLOOKUP(C6,Tables!$M$3:$Q$38,2,FALSE),IF(B6=Tables!$M$40,VLOOKUP(C6,Tables!$M$42:$Q$58,2,FALSE),IF(B6=Tables!$B$78,VLOOKUP(C6,Tables!$B$80:$F$136,2,FALSE),IF(B6=Tables!$G$78,VLOOKUP(C6,Tables!$G$80:$K$114,2,FALSE),IF(B6=Tables!$L$78,VLOOKUP(C6,Tables!$L$80:$P$128,2,FALSE),IF(B6=Tables!$B$138,VLOOKUP(C6,Tables!$B$140:$F$177,2,FALSE),IF(B6=Tables!$G$138,VLOOKUP(C6,Tables!$G$140:$K$184,2,FALSE),IF(B6=Tables!$L$138,VLOOKUP(C6,Tables!$L$140:$P$171,2,FALSE),IF(B6=Tables!$B$186,VLOOKUP(C6,Tables!$B$188:$F$220,2,FALSE),IF(B6=Tables!$G$186,VLOOKUP(C6,Tables!$G$188:$K$224,2,FALSE),IF(B6=Tables!$L$186,VLOOKUP(C6,Tables!$L$188:$P$221,2,FALSE),IF(B6=Tables!$G$186,VLOOKUP(C6,Tables!$G$188:$K$224,2,FALSE),IF(B6=Tables!$B$226,VLOOKUP(C6,Tables!$B$228:$F$256,2,FALSE),IF(B6=Tables!$G$226,VLOOKUP(C6,Tables!$G$228:$K$263,2,FALSE),IF(B6=Tables!$M$226,VLOOKUP(C6,Tables!$M$228:$Q$259,2,FALSE),IF(B6=Tables!$B$265,VLOOKUP(C6,Tables!$B$267:$F$305,2,FALSE),IF(B6=Tables!$H$265,VLOOKUP(C6,Tables!$H$267:$L$338,2,FALSE),IF(B6=Tables!$N$265,VLOOKUP(C6,Tables!$N$267:$R$302,2,FALSE),IF(B6=Tables!$B$308,VLOOKUP(C6,Tables!$B$310:$F$343,2,FALSE),IF(B6=Tables!$N$308,VLOOKUP(C6,Tables!$N$310:$R$332,2,FALSE),IF(B6=Tables!$B$346,VLOOKUP(C6,Tables!$B$348:$F$417,2,FALSE),\"\"))))))))))))))))))))))))","v":3},4,{"$f":"IFERROR(D6*E6,\"\")","v":12},{"$f":"IF($C$6=\"\",\"\",IF(B6=Tables!$B$1,VLOOKUP($C$6,Tables!$B$4:$F$37,3,FALSE),IF($B$6=Tables!$H$1,VLOOKUP($C$6,Tables!$H$3:$L$76,3,FALSE),IF($B$6=Tables!$M$1,VLOOKUP($C$6,Tables!$M$3:$Q$38,3,FALSE),IF($B$6=Tables!$M$40,VLOOKUP($C$6,Tables!$M$42:Q58,3,FALSE),IF($B$6=Tables!$B$78,VLOOKUP($C$6,Tables!$B$80:$F$136,3,FALSE),IF($B$6=Tables!$G$78,VLOOKUP($C$6,Tables!$G$80:$K$114,3,FALSE),IF($B$6=Tables!$L$78,VLOOKUP($C$6,Tables!$L$80:$P$128,3,FALSE),IF($B$6=Tables!$B$138,VLOOKUP($C$6,Tables!$B$140:$F$177,3,FALSE),IF($B$6=Tables!$G$138,VLOOKUP($C$6,Tables!$G$140:$K$184,3,FALSE),IF($B$6=Tables!$L$138,VLOOKUP($C$6,Tables!$L$140:$P$171,3,FALSE),IF($B$6=Tables!$B$186,VLOOKUP($C$6,Tables!$B$188:$F$220,3,FALSE),IF($B$6=Tables!$G$186,VLOOKUP($C$6,Tables!$G$188:$K$224,3,FALSE),IF($B$6=Tables!$L$186,VLOOKUP($C$6,Tables!$L$188:$P$221,3,FALSE),IF($B$6=Tables!$G$186,VLOOKUP($C$6,Tables!$G$188:$K$224,3,FALSE),IF($B$6=Tables!$B$226,VLOOKUP($C$6,Tables!$B$228:$F$256,3,FALSE),IF($B$6=Tables!$G$226,VLOOKUP($C$6,Tables!$G$228:$K$263,3,FALSE),IF($B$6=Tables!$M$226,VLOOKUP($C$6,Tables!$M$228:$Q$259,3,FALSE),IF($B$6=Tables!$B$265,VLOOKUP($C$6,Tables!$B$267:$F$305,3,FALSE),IF($B$6=Tables!$H$265,VLOOKUP($C$6,Tables!$H$267:$L$338,3,FALSE),IF($B$6=Tables!$N$265,VLOOKUP($C$6,Tables!$N$267:$R$302,3,FALSE),IF($B$6=Tables!$B$308,VLOOKUP($C$6,Tables!$B$310:$F$343,3,FALSE),IF($B$6=Tables!$N$308,VLOOKUP($C$6,Tables!$N$310:$R$332,3,FALSE),IF($B$6=Tables!$B$346,VLOOKUP($C$6,Tables!$B$348:$F$417,3,FALSE),\"\"))))))))))))))))))))))))","v":3},3,{"$f":"IFERROR(G6*H6,\"\")","v":9},{"$f":"IF(C6=\"\",\"\",IF(B6=Tables!$B$1,VLOOKUP(C6,Tables!$B$4:$F$37,4,FALSE),IF(B6=Tables!$H$1,VLOOKUP(C6,Tables!$H$3:$L$76,4,FALSE),IF(B6=Tables!$M$1,VLOOKUP(C6,Tables!$M$3:$Q$38,4,FALSE),IF(B6=Tables!$M$40,VLOOKUP(C6,Tables!$M$42:$Q$58,4,FALSE),IF(B6=Tables!$B$78,VLOOKUP(C6,Tables!$B$79:$F$136,4,FALSE),IF(B6=Tables!$G$78,VLOOKUP(C6,Tables!$G$80:$K$114,4,FALSE),IF(B6=Tables!$L$78,VLOOKUP(C6,Tables!$L$80:$P$128,4,FALSE),IF(B6=Tables!$B$138,VLOOKUP(C6,Tables!$B$140:$F$177,4,FALSE),IF(B6=Tables!$G$138,VLOOKUP(C6,Tables!$G$140:$K$184,4,FALSE),IF(B6=Tables!$L$138,VLOOKUP(C6,Tables!$L$140:$P$171,4,FALSE),IF(B6=Tables!$B$186,VLOOKUP(C6,Tables!$B$188:$F$220,4,FALSE),IF(B6=Tables!$G$186,VLOOKUP(C6,Tables!$G$188:$K$224,4,FALSE),IF(B6=Tables!$L$186,VLOOKUP(C6,Tables!$L$188:$P$221,4,FALSE),IF(B6=Tables!$G$186,VLOOKUP(C6,Tables!$G$188:$K$224,4,FALSE),IF(B6=Tables!$B$226,VLOOKUP(C6,Tables!$B$228:$F$256,4,FALSE),IF(B6=Tables!$G$226,VLOOKUP(C6,Tables!$G$228:$K$263,4,FALSE),IF(B6=Tables!$M$226,VLOOKUP(C6,Tables!$M$228:$Q$259,4,FALSE),IF(B6=Tables!$B$265,VLOOKUP(C6,Tables!$B$267:$F$305,4,FALSE),IF(B6=Tables!$H$265,VLOOKUP(C6,Tables!$H$267:$L$338,4,FALSE),IF(B6=Tables!N$265,VLOOKUP(C6,Tables!$N$267:$R$302,4,FALSE),IF(B6=Tables!$B$308,VLOOKUP(C6,Tables!$B$310:$F$343,4,FALSE),IF(B6=Tables!$N$308,VLOOKUP(C6,Tables!$N$310:$R$332,4,FALSE),IF(B6=Tables!B$346,VLOOKUP(C6,Tables!$B$348:$F$417,4,FALSE),\"\"))))))))))))))))))))))))","v":0},2,{"$f":"IFERROR(J6*K6,\"\")","v":0},{"$f":"IF(C6=\"\",\"\",IF(B6=Tables!$B$1,VLOOKUP(C6,Tables!$B$4:$F$37,5,FALSE),IF(B6=Tables!$H$1,VLOOKUP(C6,Tables!$H$3:$L$76,5,FALSE),IF(B6=Tables!$M$1,VLOOKUP(C6,Tables!$M$3:$Q$38,5,FALSE),IF(B6=Tables!$M$40,VLOOKUP(C6,Tables!$M$42:$Q$58,5,FALSE),IF(B6=Tables!$B$78,VLOOKUP(C6,Tables!$B$79:$F$136,5,FALSE),IF(B6=Tables!$G$78,VLOOKUP(C6,Tables!$G$80:$K$114,5,FALSE),IF(B6=Tables!$L$78,VLOOKUP(C6,Tables!$L$80:$P$128,5,FALSE),IF(B6=Tables!$B$138,VLOOKUP(C6,Tables!$B$140:$F$177,5,FALSE),IF(B6=Tables!$G$138,VLOOKUP(C6,Tables!$G$140:$K$184,5,FALSE),IF(B6=Tables!$L$138,VLOOKUP(C6,Tables!$L$140:$P$171,5,FALSE),IF(B6=Tables!$B$186,VLOOKUP(C6,Tables!$B$188:$F$220,5,FALSE),IF(B6=Tables!$G$186,VLOOKUP(C6,Tables!$G$188:$K$224,5,FALSE),IF(B6=Tables!$L$186,VLOOKUP(C6,Tables!$L$188:$P$221,5,FALSE),IF(B6=Tables!$G$186,VLOOKUP(C6,Tables!$G$188:$K$224,5,FALSE),IF(B6=Tables!$B$226,VLOOKUP(C6,Tables!$B$228:$F$256,5,FALSE),IF(B6=Tables!$G$226,VLOOKUP(C6,Tables!$G$228:$K$263,5,FALSE),IF(B6=Tables!$M$226,VLOOKUP(C6,Tables!$M$228:$Q$259,5,FALSE),IF(B6=Tables!$B$265,VLOOKUP(C6,Tables!$B$267:$F$305,5,FALSE),IF(B6=Tables!$H$265,VLOOKUP(C6,Tables!$H$267:$L$338,5,FALSE),IF($B$6=Tables!N$265,VLOOKUP(C6,Tables!$N$267:$R$302,5,FALSE),IF(B6=Tables!$B$308,VLOOKUP(C6,Tables!$B$310:$F$343,5,FALSE),IF(B6=Tables!$N$308,VLOOKUP(C6,Tables!$N$310:$R$332,5,FALSE),IF(B6=Tables!$B$346,VLOOKUP(C6,Tables!$B$348:$F$417,5,FALSE),\"\"))))))))))))))))))))))))","v":0},null,{"$f":"IFERROR(M6*N6,\"\")","v":0},{"$f":"IFERROR(F6+I6+L6+O6,\"\")","v":21},0.04,{"$f":"IFERROR(P6-(Q6*P6),\"\")","v":20.16}]
[{"$f":"ROW()","v":7},"AVEYRON DEP","Double écran (L 192 x H 66)",{"$f":"IF(C7=\"\",\"\",IF(B7=Tables!$B$1,VLOOKUP(C7,Tables!$B$4:$F$37,2,FALSE),IF(B7=Tables!$H$1,VLOOKUP(C7,Tables!$H$3:$L$76,2,FALSE),IF(B7=Tables!$M$1,VLOOKUP(C7,Tables!$M$3:$Q$38,2,FALSE),IF(B7=Tables!$M$40,VLOOKUP(C7,Tables!$M$42:$Q$58,2,FALSE),IF(B7=Tables!$B$78,VLOOKUP(C7,Tables!$B$80:$F$136,2,FALSE),IF(B7=Tables!$G$78,VLOOKUP(C7,Tables!$G$80:$K$114,2,FALSE),IF(B7=Tables!$L$78,VLOOKUP(C7,Tables!$L$80:$P$128,2,FALSE),IF(B7=Tables!$B$138,VLOOKUP(C7,Tables!$B$140:$F$177,2,FALSE),IF(B7=Tables!$G$138,VLOOKUP(C7,Tables!$G$140:$K$184,2,FALSE),IF(B7=Tables!$L$138,VLOOKUP(C7,Tables!$L$140:$P$171,2,FALSE),IF(B7=Tables!$B$186,VLOOKUP(C7,Tables!$B$188:$F$220,2,FALSE),IF(B7=Tables!$G$186,VLOOKUP(C7,Tables!$G$188:$K$224,2,FALSE),IF(B7=Tables!$L$186,VLOOKUP(C7,Tables!$L$188:$P$221,2,FALSE),IF(B7=Tables!$G$186,VLOOKUP(C7,Tables!$G$188:$K$224,2,FALSE),IF(B7=Tables!$B$226,VLOOKUP(C7,Tables!$B$228:$F$256,2,FALSE),IF(B7=Tables!$G$226,VLOOKUP(C7,Tables!$G$228:$K$263,2,FALSE),IF(B7=Tables!$M$226,VLOOKUP(C7,Tables!$M$228:$Q$259,2,FALSE),IF(B7=Tables!$B$265,VLOOKUP(C7,Tables!$B$267:$F$305,2,FALSE),IF(B7=Tables!$H$265,VLOOKUP(C7,Tables!$H$267:$L$338,2,FALSE),IF(B7=Tables!$N$265,VLOOKUP(C7,Tables!$N$267:$R$302,2,FALSE),IF(B7=Tables!$B$308,VLOOKUP(C7,Tables!$B$310:$F$343,2,FALSE),IF(B7=Tables!$N$308,VLOOKUP(C7,Tables!$N$310:$R$332,2,FALSE),IF(B7=Tables!$B$346,VLOOKUP(C7,Tables!$B$348:$F$417,2,FALSE),\"\"))))))))))))))))))))))))","v":3},5,{"$f":"IFERROR(D7*E7,\"\")","v":15},{"$f":"IF($C$6=\"\",\"\",IF(B7=Tables!$B$1,VLOOKUP($C$6,Tables!$B$4:$F$37,3,FALSE),IF($B$6=Tables!$H$1,VLOOKUP($C$6,Tables!$H$3:$L$76,3,FALSE),IF($B$6=Tables!$M$1,VLOOKUP($C$6,Tables!$M$3:$Q$38,3,FALSE),IF($B$6=Tables!$M$40,VLOOKUP($C$6,Tables!$M$42:Q59,3,FALSE),IF($B$6=Tables!$B$78,VLOOKUP($C$6,Tables!$B$80:$F$136,3,FALSE),IF($B$6=Tables!$G$78,VLOOKUP($C$6,Tables!$G$80:$K$114,3,FALSE),IF($B$6=Tables!$L$78,VLOOKUP($C$6,Tables!$L$80:$P$128,3,FALSE),IF($B$6=Tables!$B$138,VLOOKUP($C$6,Tables!$B$140:$F$177,3,FALSE),IF($B$6=Tables!$G$138,VLOOKUP($C$6,Tables!$G$140:$K$184,3,FALSE),IF($B$6=Tables!$L$138,VLOOKUP($C$6,Tables!$L$140:$P$171,3,FALSE),IF($B$6=Tables!$B$186,VLOOKUP($C$6,Tables!$B$188:$F$220,3,FALSE),IF($B$6=Tables!$G$186,VLOOKUP($C$6,Tables!$G$188:$K$224,3,FALSE),IF($B$6=Tables!$L$186,VLOOKUP($C$6,Tables!$L$188:$P$221,3,FALSE),IF($B$6=Tables!$G$186,VLOOKUP($C$6,Tables!$G$188:$K$224,3,FALSE),IF($B$6=Tables!$B$226,VLOOKUP($C$6,Tables!$B$228:$F$256,3,FALSE),IF($B$6=Tables!$G$226,VLOOKUP($C$6,Tables!$G$228:$K$263,3,FALSE),IF($B$6=Tables!$M$226,VLOOKUP($C$6,Tables!$M$228:$Q$259,3,FALSE),IF($B$6=Tables!$B$265,VLOOKUP($C$6,Tables!$B$267:$F$305,3,FALSE),IF($B$6=Tables!$H$265,VLOOKUP($C$6,Tables!$H$267:$L$338,3,FALSE),IF($B$6=Tables!$N$265,VLOOKUP($C$6,Tables!$N$267:$R$302,3,FALSE),IF($B$6=Tables!$B$308,VLOOKUP($C$6,Tables!$B$310:$F$343,3,FALSE),IF($B$6=Tables!$N$308,VLOOKUP($C$6,Tables!$N$310:$R$332,3,FALSE),IF($B$6=Tables!$B$346,VLOOKUP($C$6,Tables!$B$348:$F$417,3,FALSE),\"\"))))))))))))))))))))))))","v":""},null,{"$f":"IFERROR(G7*H7,0)","v":0},{"$f":"IF(C7=\"\",\"\",IF(B7=Tables!$B$1,VLOOKUP(C7,Tables!$B$4:$F$37,4,FALSE),IF(B7=Tables!$H$1,VLOOKUP(C7,Tables!$H$3:$L$76,4,FALSE),IF(B7=Tables!$M$1,VLOOKUP(C7,Tables!$M$3:$Q$38,4,FALSE),IF(B7=Tables!$M$40,VLOOKUP(C7,Tables!$M$42:$Q$58,4,FALSE),IF(B7=Tables!$B$78,VLOOKUP(C7,Tables!$B$79:$F$136,4,FALSE),IF(B7=Tables!$G$78,VLOOKUP(C7,Tables!$G$80:$K$114,4,FALSE),IF(B7=Tables!$L$78,VLOOKUP(C7,Tables!$L$80:$P$128,4,FALSE),IF(B7=Tables!$B$138,VLOOKUP(C7,Tables!$B$140:$F$177,4,FALSE),IF(B7=Tables!$G$138,VLOOKUP(C7,Tables!$G$140:$K$184,4,FALSE),IF(B7=Tables!$L$138,VLOOKUP(C7,Tables!$L$140:$P$171,4,FALSE),IF(B7=Tables!$B$186,VLOOKUP(C7,Tables!$B$188:$F$220,4,FALSE),IF(B7=Tables!$G$186,VLOOKUP(C7,Tables!$G$188:$K$224,4,FALSE),IF(B7=Tables!$L$186,VLOOKUP(C7,Tables!$L$188:$P$221,4,FALSE),IF(B7=Tables!$G$186,VLOOKUP(C7,Tables!$G$188:$K$224,4,FALSE),IF(B7=Tables!$B$226,VLOOKUP(C7,Tables!$B$228:$F$256,4,FALSE),IF(B7=Tables!$G$226,VLOOKUP(C7,Tables!$G$228:$K$263,4,FALSE),IF(B7=Tables!$M$226,VLOOKUP(C7,Tables!$M$228:$Q$259,4,FALSE),IF(B7=Tables!$B$265,VLOOKUP(C7,Tables!$B$267:$F$305,4,FALSE),IF(B7=Tables!$H$265,VLOOKUP(C7,Tables!$H$267:$L$338,4,FALSE),IF(B7=Tables!N$265,VLOOKUP(C7,Tables!$N$267:$R$302,4,FALSE),IF(B7=Tables!$B$308,VLOOKUP(C7,Tables!$B$310:$F$343,4,FALSE),IF(B7=Tables!$N$308,VLOOKUP(C7,Tables!$N$310:$R$332,4,FALSE),IF(B7=Tables!B$346,VLOOKUP(C7,Tables!$B$348:$F$417,4,FALSE),\"\"))))))))))))))))))))))))","v":0},null,{"$f":"IFERROR(J7*K7,0)","v":0},{"$f":"IF(C7=\"\",\"\",IF(B7=Tables!$B$1,VLOOKUP(C7,Tables!$B$4:$F$37,5,FALSE),IF(B7=Tables!$H$1,VLOOKUP(C7,Tables!$H$3:$L$76,5,FALSE),IF(B7=Tables!$M$1,VLOOKUP(C7,Tables!$M$3:$Q$38,5,FALSE),IF(B7=Tables!$M$40,VLOOKUP(C7,Tables!$M$42:$Q$58,5,FALSE),IF(B7=Tables!$B$78,VLOOKUP(C7,Tables!$B$79:$F$136,5,FALSE),IF(B7=Tables!$G$78,VLOOKUP(C7,Tables!$G$80:$K$114,5,FALSE),IF(B7=Tables!$L$78,VLOOKUP(C7,Tables!$L$80:$P$128,5,FALSE),IF(B7=Tables!$B$138,VLOOKUP(C7,Tables!$B$140:$F$177,5,FALSE),IF(B7=Tables!$G$138,VLOOKUP(C7,Tables!$G$140:$K$184,5,FALSE),IF(B7=Tables!$L$138,VLOOKUP(C7,Tables!$L$140:$P$171,5,FALSE),IF(B7=Tables!$B$186,VLOOKUP(C7,Tables!$B$188:$F$220,5,FALSE),IF(B7=Tables!$G$186,VLOOKUP(C7,Tables!$G$188:$K$224,5,FALSE),IF(B7=Tables!$L$186,VLOOKUP(C7,Tables!$L$188:$P$221,5,FALSE),IF(B7=Tables!$G$186,VLOOKUP(C7,Tables!$G$188:$K$224,5,FALSE),IF(B7=Tables!$B$226,VLOOKUP(C7,Tables!$B$228:$F$256,5,FALSE),IF(B7=Tables!$G$226,VLOOKUP(C7,Tables!$G$228:$K$263,5,FALSE),IF(B7=Tables!$M$226,VLOOKUP(C7,Tables!$M$228:$Q$259,5,FALSE),IF(B7=Tables!$B$265,VLOOKUP(C7,Tables!$B$267:$F$305,5,FALSE),IF(B7=Tables!$H$265,VLOOKUP(C7,Tables!$H$267:$L$338,5,FALSE),IF($B$6=Tables!N$265,VLOOKUP(C7,Tables!$N$267:$R$302,5,FALSE),IF(B7=Tables!$B$308,VLOOKUP(C7,Tables!$B$310:$F$343,5,FALSE),IF(B7=Tables!$N$308,VLOOKUP(C7,Tables!$N$310:$R$332,5,FALSE),IF(B7=Tables!$B$346,VLOOKUP(C7,Tables!$B$348:$F$417,5,FALSE),\"\"))))))))))))))))))))))))","v":0},null,{"$f":"IFERROR(M7*N7,0)","v":0},{"$f":"IFERROR(F7+I7+L7+O7,\"\")","v":15},null,{"$f":"IFERROR(P7-(Q7*P7),\"\")","v":15}]
[]
[null,null,null,null,null,null,null,null,null,null,null,null,"POURCENTAGE AUTO PAR LIGNE   ",null,null,{"$f":"SUM($P$6:INDIRECT(ADDRESS($AA$1,16,1,1)))","v":36},{"$f":"IFERROR((R9-P9)/P9,0)","v":-2.3333333333333428E-2},{"$f":"SUM(R6:INDIRECT(ADDRESS($AA$1,18,1,1)))","v":35.159999999999997}]
[]
[null,null,null,null,null,null,null,null,null,null,null,null,"POURCENTAGE GLOBAL MANUEL   ",null,null,{"$f":"P9","v":36},null,{"$f":"P11-(P11*Q11)","v":36}]
[null,null,null,null,null,null,null,null,null,null,null,null,null,null,null,null,"                          "]

{"sheet":"Tables","index":1,"n_rows":417,"n_cols":33,"rows_kept":417,"cut":false,"hidden":false,"merged":[]}
[null,"ALES",null,null,null,null,null,"AUDE DEP",null,null,null,null,"AUDE INDEP ML"]
[]
[null,"PAGES LOCALES",null,null,null,null,null,"DEUXIEME CAHIER QUADRI DEPARTEMENTAL 24 h / CARCASSONNE",null,null,null,null,"PAGES LOCALES"]
[null,"Ecran de base (L 94 x H 66)",1,1,null,null,null,"Ecran de base (L 94 x H 66) CARCA",1,1,null,null,"Ecran de base (L 94 x H 66)",1,1]
[null,"Double écran (L 94 x H 137)",2,2,null,null,null,"Double écran (L 94 x H 137) CARCA",2,2,null,null,"Double écran (L 94 x H 137)",2,2]
[null,"Double écran (L 192 x H 66)",3,3,null,null,null,"Double écran (L 192 x H 66) CARCA",3,3,null,null,"Double écran (L 192 x H 66)",3,3]
[null,"Bandeau (L 290 X H 66)",4,4,null,null,null,"Bandeau (L 290 X H 66) CARCA",4,4,null,null,"Bandeau (L 290 X H 66)",4,4,null,null,null,null,null,null,null,null,null,null,"ALES",null,null,1,null,0.01,null,-0.01]
[null,"Demie-chandelle (L 290 X H 66)",5,5,null,null,null,"Demie-chandelle (L 94 X H 208) CARCA",5,5,null,null,"Demie-chandellle (L 94 x H 208)",5,5,null,null,null,null,null,null,null,null,null,null,"AUDE DEP",null,null,2,null,0.02,null,-0.02]
[null,"4 x 4 (L 192 X H 137)",6,6,null,null,null,"4 x 4 (L 192 X H 137) CARCA",6,6,null,null,"4 x 4 (L 192 X H 137)",6,6,null,null,null,null,null,null,null,null,null,null,"AUDE INDEP ML",null,null,3,null,0.03,null,-0.03]
[null,"Quart de page (L 143 X H 208)",7,7,null,null,null,"Quart de page (L 143 X H 208) CARCA",7,7,null,null,"Quart de page (L 143 X H 208)",7,7,null,null,null,null,null,null,null,null,null,null,"AVEYRON CPA ML",null,null,4,null,0.04,null,-0.04]
[null,"Double bandeau (L 290 x H 137)",8,8,null,null,null,"Double bandeau (L 290 x H 137) CARCA",8,8,null,null,"Double bandeau (L 290 X H 137)",8,8,null,null,null,null,null,null,null,null,null,null,"AVEYRON DEP",null,null,5,null,0.05,null,-0.05]
[null,"Grand 6 (L 192 X H 208)",9,9,null,null,null,"Grand 6 (L 192 X H 208) CARCA",9,9,null,null,"Grand 6 (L 192 X H 208)",9,9,null,null,null,null,null,null,null,null,null,null,"BAGNOLS",null,null,6,null,0.06,null,-0.06]
[null,"Chandelle (L 94 X H 421)",10,10,null,null,null,"Chandelle (L 94 X H 421) CARCA",10,10,null,null,"Chandelle (L 94 X H 421)",10,10,null,null,null,null,null,null,null,null,null,null,"BEZIERS",null,null,7,null,7.0000000000000007E-2,null,-7.0000000000000007E-2]
[null,"Grand 8 (L 192 X H 279)",11,11,null,null,null,"Demi-page (L 290 X H 208) CARCA",11,11,null,null,"Grand 8 (L 192 X H 279)",11,11,null,null,null,null,null,null,null,null,null,null,"CARCASSONNE",null,null,8,null,0.08,null,-0.08]
[null,"Demi-page (L 290 X H 208)",12,12,null,null,null,"Double chandelle (L 192 X H 421) CARCA",12,12,null,null,"Demi-page (L 290 X H 208)",12,12,null,null,null,null,null,null,null,null,null,null,"DIRECT MATIN",null,null,9,null,0.09,null,-0.09]
[null,"Double chandelle (L 192 X H 421)",13,13,null,null,null,"Page (L 290 X H 421) CARCA",13,13,null,null,"Double chandelle (L 192 X H 421)",13,13,null,null,null,null,null,null,null,null,null,null,"GARD",null,null,10,null,0.1,null,-0.1]
[null,"Page (L 290 X H 421)",14,14,null,null,null,null,null,null,null,null,"Page (L 290 X H 421)",14,14,null,null,null,null,null,null,null,null,null,null,"HERAULT",null,null,11,null,0.11,null,-0.11]
[null,null,null,null,null,null,null,"DEUXIEME CAHIER QUADRI CASTELNAUDARY ET AUTRES PAGES ",null,null,null,null,null,null,null,null,null,null,null,null,null,null,null,null,null,"LODEVE",null,null,12,null,0.12,null,-0.12]
[null,"EMPLACEMENTS PRIVILEGIES",null,null,null,null,null,"Ecran de base (L 94 x H 66)",1,1,null,null,"EMPLACEMENTS PRIVILEGIES",null,null,null,null,null,null,null,null,null,null,null,null,"LOZERE",null,null,13,null,0.13,null,-0.13]
[null,"Corner de Une",1,1,null,null,null,"Double écran (L 94 x H 137)",2,2,null,null,"Manchette de Une",1,1,null,null,null,null,null,null,null,null,null,null,"LUNEL",null,null,14,null,0.14000000000000001,null,-0.14000000000000001]
[null,"Manchette de Une",2,2,null,null,null,"Double écran (L 192 x H 66)",3,3,null,null,"Ecran de Une",2,2,null,null,null,null,null,null,null,null,null,null,"MILLAU",null,null,15,null,0.15,null,-0.15]
[null,"Ecran de Une",3,3,null,null,null,"Bandeau (L 290 X H 66)",4,4,null,null,"Bandeau de Une",3,3,null,null,null,null,null,null,null,null,null,null,"MONTPELLIER REGION",null,null,16,null,0.16,null,-0.16]
[null,"Bandeau de Une",4,4,null,null,null,"Demie-chandelle (L 94 X H 208)",5,5,null,null,"4 x 4 page 2 ou 3 ou Der",4,4,null,null,null,null,null,null,null,null,null,null,"NARBONNE",null,null,17,null,0.17,null,-0.17]
[null,"4 x 4 page 2, 3 ou Der",5,5,null,null,null,"4 x 4 (L 192 X H 137)",6,6,null,null,"Double bandeau P3",5,5,null,null,null,null,null,null,null,null,null,null,"NIMES",null,null,18,null,0.18,null,-0.18]
[null,"Double bandeau P3",6,6,null,null,null,"Quart de page (L 143 X H 208)",7,7,null,null,"Corner de Une",6,6,null,null,null,null,null,null,null,null,null,null,"PO",null,null,19,null,0.19,null,-0.19]
[null,"Grand 6 page 4",7,7,null,null,null,"Double bandeau (L 290 x H 137)",8,8,null,null,"Grand 6 page 4",7,7,null,null,null,null,null,null,null,null,null,null,"RODEZ",null,null,20,null,0.2,null,-0.2]
[null,"Chandelle page 4",8,8,null,null,null,"Grand 6 (L 192 X H 208)",9,9,null,null,"Chandelle page 4",8,8,null,null,null,null,null,null,null,null,null,null,"SETE",null,null,21,null,0.21,null,-0.21]
[null,"Demi-page page 4",9,9,null,null,null,"Chandelle (L 94 X H 421)",10,10,null,null,"Demi-page page 4",9,9,null,null,null,null,null,null,null,null,null,null,"TOUTES EDITIONS",null,null,22,null,0.22,null,-0.22]
[null,"Double chandelle page 4",10,10,null,null,null,"Demi-page (L 290 X H 208)",11,11,null,null,"Double chandelle page 4",10,10,null,null,null,null,null,null,null,null,null,null,null,null,null,23,null,0.23,null,-0.23]
[null,"Page 4",11,11,null,null,null,"Double chandelle (L 192 X H 421)",12,12,null,null,"Page 4",11,11,null,null,null,null,null,null,null,null,null,null,null,null,null,24,null,0.24,null,-0.24]
[null,"Double écran page 5",12,12,null,null,null,"Page (L 290 X H 421)",13,13,null,null,"Ecran de base page 5",12,12,null,null,null,null,null,null,null,null,null,null,null,null,null,25,null,0.25,null,-0.25]
[null,"4 x 4 page 5",13,13,null,null,null,null,null,null,null,null,"Double écran page 5",13,13,null,null,null,null,null,null,null,null,null,null,null,null,null,26,null,0.26,null,-0.26]
[null,"Bandeau page 5",14,14,null,null,null,"EMPLACEMENTS PRIVILEGIES PREMIER CAHIER",null,null,null,null,"Bandeau page 5",14,14,null,null,null,null,null,null,null,null,null,null,null,null,null,27,null,0.27,null,-0.27]
[null,null,null,null,null,null,null,"Manchette de Une (L 69 x H 45) 1er",1,1,null,null,"4 x 4 page 5",15,15,null,null,null,null,null,null,null,null,null,null,null,null,null,28,null,0.28000000000000003,null,-0.28000000000000003]
[null,"PAGE TELEVISION",null,null,null,null,null,"Duo de Une (L 92 x H 100) 1er",2,2,null,null,null,null,null,null,null,null,null,null,null,null,null,null,null,null,null,null,29,null,0.28999999999999998,null,-0.28999999999999998]
[null,"Ecran",1,1,null,null,null,"Quadro de Une (L 188 x H 100) 1er",3,3,null,null,"PAGE TELEVISION",null,null,null,null,null,null,null,null,null,null,null,null,null,null,null,30,null,0.3,null,-0.3]
[null,"Double écran",1,1,null,null,null,"Duo en Der 1er",4,4,null,null,"Ecran",1,1,null,null,null,null,null,null,null,null,null,null,null,null,null,31,null,0.31,null,-0.31]
[null,null,null,null,null,null,null,"Quatro en Der 1er",5,5,null,null,"Double écran",1,1,null,null,null,null,null,null,null,null,null,null,null,null,null,32,null,0.32,null,-0.32]
[null,"AUDE INDEP ML",null,null,null,null,null,null,null,null,null,null,null,null,null,null,null,null,null,null,null,null,null,null,null,null,null,null,33,null,0.33,null,-0.33]
[null,null,null,null,null,null,null,"EMPLACEMENTS PRIVILEGIES DEUXIEME CAHIER",null,null,null,null,"AVEYRON CPA ML",null,null,null,null,null,null,null,null,null,null,null,null,null,null,null,34,null,0.34,null,-0.34]
[null,"PAGES LOCALES",null,null,null,null,null,"Manchette de Une (L 69 x H 45)",1,1,null,null,null,null,null,null,null,null,null,null,null,null,null,null,null,null,null,null,35,null,0.35,null,-0.35]
[null,"Ecran de base (L 94 x H 66)",1,1,null,null,null,"Duo de Une (L 92 x H 100)",2,2,null,null,"EMPLACEMENTS PRIVILEGIES",null,null,null,null,null,null,null,null,null,null,null,null,null,null,null,36,null,0.36,null,-0.36]
[null,"Double écran (L 94 x H 137)",2,2,null,null,null,"Quadro de Une (L 188 x H 100)",3,3,null,null,"Manchette de Une* Midi Libre seul format (L 69 x H 45)",1,1,null,null,null,null,null,null,null,null,null,null,null,null,null,37,null,0.37,null,-0.37]
[null,"Double écran (L 192 x H 66)",3,3,null,null,null,"Quart de page Der",4,4,null,null,"Bandeau de Une",2,2,null,null,null,null,null,null,null,null,null,null,null,null,null,38,null,0.38,null,-0.38]
[null,"Bandeau (L 290 X H 66)",4,4,null,null,null,"Demi-page Der",5,5,null,null,"4 x 4 page 2, 3 ou Der",3,3,null,null,null,null,null,null,null,null,null,null,null,null,null,39,null,0.39,null,-0.39]
[null,"Demie-chandellle (L 94 x H 208)",5,5,null,null,null,"Page Der",6,6,null,null,"4 x 4 page 4",4,4,null,null,null,null,null,null,null,null,null,null,null,null,null,40,null,0.4,null,-0.4]
[null,"4 x 4 (L 192 X H 137)",6,6,null,null,null,null,null,null,null,null,"Grand 6 page 4",5,5,null,null,null,null,null,null,null,null,null,null,null,null,null,41,null,0.41,null,-0.41]
[null,"Quart de page (L 143 X H 208)",7,7,null,null,null,"DEUXIEME CAHIER PAGES NOIRES CARCASSONNE",null,null,null,null,"Chandelle page 4",6,6,null,null,null,null,null,null,null,null,null,null,null,null,null,42,null,0.42,null,-0.42]
[null,"Double bandeau (L 290 X H 137)",8,8,null,null,null,"Ecran de base (L 94 x H 66) NC",1,1,null,null,"Demi-page page 4",7,7,null,null,null,null,null,null,null,null,null,null,null,null,null,43,null,0.43,null,-0.43]
[null,"Grand 6 (L 192 X H 208)",9,9,null,null,null,"Double écran (L 94 x H 137) NC",2,2,null,null,"Double chandelle page 4",8,8,null,null,null,null,null,null,null,null,null,null,null,null,null,44,null,0.44,null,-0.44]
[null,"Chandelle (L 94 X H 421)",10,10,null,null,null,"Double écran (L 192 x H 66) NC",3,3,null,null,"Page 4",9,9,null,null,null,null,null,null,null,null,null,null,null,null,null,45,null,0.45,null,-0.45]
[null,"Grand 8 (L 192 X H 279)",11,11,null,null,null,"Bandeau (L 290 X H 66) NC",4,4,null,null,null,null,null,null,null,null,null,null,null,null,null,null,null,null,null,null,46,null,0.46,null,-0.46]
[null,"Demi-page (L 290 X H 208)",12,12,null,null,null,"Demie-chandelle (L 94 X H 208) NC",5,5,null,null,"PAGE TELEVISION",null,null,null,null,null,null,null,null,null,null,null,null,null,null,null,47,null,0.47,null,-0.47]
[null,"Double chandelle (L 192 X H 421)",13,13,null,null,null,"4 x 4 (L 192 X H 137) NC",6,6,null,null,"Ecran",1,1,null,null,null,null,null,null,null,null,null,null,null,null,null,48,null,0.48,null,-0.48]
[null,"Page (L 290 X H 421)",3704.4,4233.6000000000004,null,null,null,"Quart de page (L 143 X H 208) NC",7,7,null,null,"Double écran",1,1,null,null,null,null,null,null,null,null,null,null,null,null,null,49,null,0.49,null,-0.49]
[null,null,null,null,null,null,null,"Double bandeau (L 290 x H 137) NC",8,8,null,null,null,null,null,null,null,null,null,null,null,null,null,null,null,null,null,null,50,null,0.5,null,-0.5]
[null,"EMPLACEMENTS PRIVILEGIES",null,null,null,null,null,"Grand 6 (L 192 X H 208) NC",9,9,null,null,"MODULE METEO",null,null,null,null,null,null,null,null,null,null,null,null,null,null,null,51,null,0.51,null,-0.51]
[null,"Manchette de Une",1,1,null,null,null,"Chandelle (L 94 X H 421) NC",10,10,null,null,"Module météo tarif unitaire / jour",1,1,null,null,null,null,null,null,null,null,null,null,null,null,null,52,null,0.52,null,-0.52]
[null,"Ecran de Une",2,2,null,null,null,"Demi-page (L 290 X H 208) NC",11,11,null,null,null,null,null,null,null,null,null,null,null,null,null,null,null,null,null,null,53,null,0.53,null,-0.53]
[null,"Bandeau de Une",3,3,null,null,null,"Double chandelle (L 192 X H 421) NC",12,12,null,null,null,null,null,null,null,null,null,null,null,null,null,null,null,null,null,null,54,null,0.54,null,-0.54]
[null,"4 x 4 page 2 ou 3 ou Der",4,4,null,null,null,"Page (L 290 X H 421) NC",13,13,null,null,null,null,null,null,null,null,null,null,null,null,null,null,null,null,null,null,55,null,0.55000000000000004,null,-0.55000000000000004]
[null,"Double bandeau P3",5,5,null,null,null,null,null,null,null,null,null,null,null,null,null,null,null,null,null,null,null,null,null,null,null,null,56,null,0.56000000000000005,null,-0.56000000000000005]
[null,"Corner de Une",6,6,null,null,null,"DEUXIEME CAHIER PAGES LOCALES NOIRES",null,null,null,null,null,null,null,null,null,null,null,null,null,null,null,null,null,null,null,null,57,null,0.56999999999999995,null,-0.56999999999999995]
[null,"Grand 6 page 4",7,7,null,null,null,"Ecran de base (L 94 x H 66) LN",1,1,null,null,null,null,null,null,null,null,null,null,null,null,null,null,null,null,null,null,58,null,0.57999999999999996,null,-0.57999999999999996]
[null,"Chandelle page 4",8,8,null,null,null,"Double écran (L 94 x H 137) LN",2,2,null,null,null,null,null,null,null,null,null,null,null,null,null,null,null,null,null,null,59,null,0.59,null,-0.59]
[null,"Demi-page page 4",9,9,null,null,null,"Double écran (L 192 x H 66)  LN",3,3,null,null,null,null,null,null,null,null,null,null,null,null,null,null,null,null,null,null,60,null,0.6,null,-0.6]
[null,"Double chandelle page 4",10,10,null,null,null,"Bandeau (L 290 X H 66) LN",4,4,null,null,null,null,null,null,null,null,null,null,null,null,null,null,null,null,null,null,61,null,0.61,null,-0.61]
[null,"Page 4",11,11,null,null,null,"Demie-chandelle (L 94 X H 208) LN",5,5,null,null,null,null,null,null,null,null,null,null,null,null,null,null,null,null,null,null,62,null,0.62,null,-0.62]
[null,"Ecran de base page 5",12,12,null,null,null,"4 x 4 (L 192 X H 137) LN",6,6,null,null,null,null,null,null,null,null,null,null,null,null,null,null,null,null,null,null,63,null,0.63,null,-0.63]
[null,"Double écran page 5",13,13,null,null,null,"Quart de page (L 143 X H 208) LN",7,7,null,null,null,null,null,null,null,null,null,null,null,null,null,null,null,null,null,null,64,null,0.64,null,-0.64]
[null,"Bandeau page 5",14,14,null,null,null,"Double bandeau (L 290 x H 137) LN",8,8,null,null,null,null,null,null,null,null,null,null,null,null,null,null,null,null,null,null,65,null,0.65,null,-0.65]
[null,"4 x 4 page 5",15,15,null,null,null,"Grand 6 (L 192 X H 208) LN",9,9,null,null,null,null,null,null,null,null,null,null,null,null,null,null,null,null,null,null,66,null,0.66,null,-0.66]
[null,null,null,null,null,null,null,"Chandelle (L 94 X H 421) LN",10,10,null,null,null,null,null,null,null,null,null,null,null,null,null,null,null,null,null,null,67,null,0.67,null,-0.67]
[null,"PAGE TELEVISION",null,null,null,null,null,"Demi-page (L 290 X H 208) LN",11,11,null,null,null,null,null,null,null,null,null,null,null,null,null,null,null,null,null,null,68,null,0.68,null,-0.68]
[null,"Ecran",1,336.44,null,null,null,"Double chandelle (L 192 X H 421) LN",12,12,null,null,null,null,null,null,null,null,null,null,null,null,null,null,null,null,null,null,69,null,0.69,null,-0.69]
[null,"Double écran",1,595.24,null,null,null,"Page (L 290 X H 421) LN",13,13,null,null,null,null,null,null,null,null,null,null,null,null,null,null,null,null,null,null,70,null,0.7,null,-0.7]
[null,null,null,null,null,null,null,null,null,null,null,null,null,null,null,null,null,null,null,null,null,null,null,null,null,null,null,null,71,null,0.71,null,-0.71]
[null,"AVEYRON DEP",null,null,null,null,"BAGNOLS",null,null,null,null,"BEZIERS",null,null,null,null,null,null,null,null,null,null,null,null,null,null,null,null,72,null,0.72,null,-0.72]
[null,null,null,null,null,null,null,null,null,null,null,null,null,null,null,null,null,null,null,null,null,null,null,null,null,null,null,null,73,null,0.73,null,-0.73]
[null,"DEUXIEME CAHIER QUADRI PAGES LOCALES",null,null,null,null,"PAGES LOCALES",null,null,null,null,"PAGES LOCALES ET VILLAGES",null,null,null,null,null,null,null,null,null,null,null,null,null,null,null,null,74,null,0.74,null,-0.74]
[null,"Ecran de base (L 94 x H 66)",1,1,null,null,"Ecran de base (L 94 x H 66)",1,1,null,null,"Ecran de base (L 94 x H 66)",1,1,1,1,null,null,null,null,null,null,null,null,null,null,null,null,75,null,0.75,null,-0.75]
[null,"Double écran (L 94 x H 137)",2,2,null,null,"Double écran (L 94 x H 137)",2,2,null,null,"Double écran (L 94 x H 137)",2,2,2,2,null,null,null,null,null,null,null,null,null,null,null,null,76,null,0.76,null,-0.76]
[null,"Double écran (L 192 x H 66)",3,3,null,null,"Double écran (L 192 x H 66)",3,3,null,null,"Double écran (L 192 x H 66)",3,3,3,3,null,null,null,null,null,null,null,null,null,null,null,null,77,null,0.77,null,-0.77]
[null,"Bandeau (L 290 X H 66)",4,4,null,null,"Bandeau (L 290 X H 66)",4,4,null,null,"Bandeau (L 290 X H 66)",4,4,4,4,null,null,null,null,null,null,null,null,null,null,null,null,78,null,0.78,null,-0.78]
[null,"Demie-chandelle (L 94 X H 208)",5,5,null,null,"Demie-chandellle (L 94 x H 208)",5,5,null,null,"Demie-chandelle (L 290 X H 66)",5,5,5,5,null,null,null,null,null,null,null,null,null,null,null,null,79,null,0.79,null,-0.79]
[null,"4 x 4 (L 192 X H 137)",6,6,null,null,"4 x 4 (L 192 X H 137)",6,6,null,null,"4 x 4 (L 192 X H 137)",6,6,6,6,null,null,null,null,null,null,null,null,null,null,null,null,80,null,0.8,null,-0.8]
[null,"Quart de page (L 143 X H 208)",7,7,null,null,"Quart de page (L 143 X H 208)",7,7,null,null,"Quart de page (L 143 X H 208)",7,7,7,7,null,null,null,null,null,null,null,null,null,null,null,null,81,null,0.81,null,-0.81]
[null,"Double bandeau (L 290 x H 137)",8,8,null,null,"Double bandeau (L 290 X H 137)",8,8,null,null,"Double bandeau (L 290 X H 137)",8,8,8,8,null,null,null,null,null,null,null,null,null,null,null,null,82,null,0.82,null,-0.82]
[null,"Grand 6 (L 192 X H 208)",9,9,null,null,"Grand 6 (L 192 X H 208)",9,9,null,null,"Grand 6 (L 192 X H 208)",9,9,9,9,null,null,null,null,null,null,null,null,null,null,null,null,83,null,0.83,null,-0.83]
[null,"Chandelle (L 94 X H 421)",10,10,null,null,"Chandelle (L 94 X H 421)",10,10,null,null,"Chandelle (L 94 X H 421)",10,10,10,10,null,null,null,null,null,null,null,null,null,null,null,null,84,null,0.84,null,-0.84]
[null,"Demi-page (L 290 X H 208)",11,11,null,null,"Grand 8 (L 192 X H 279)",11,11,null,null,"Grand 8 (L 192 X H 279)",11,11,11,11,null,null,null,null,null,null,null,null,null,null,null,null,85,null,0.85,null,-0.85]
[null,"Double chandelle (L 192 X H 421)",12,12,null,null,"Demi-page (L 290 X H 208)",12,12,null,null,"Demi-page (L 290 X H 208)",12,12,12,12,null,null,null,null,null,null,null,null,null,null,null,null,86,null,0.86,null,-0.86]
[null,"Page (L 290 X H 421)",13,13,null,null,"Double chandelle (L 192 X H 421)",13,13,null,null,"Double chandelle (L 192 X H 421)",13,13,13,13,null,null,null,null,null,null,null,null,null,null,null,null,87,null,0.87,null,-0.87]
[null,null,null,null,null,null,"Page (L 290 X H 421)",14,14,null,null,"Page (L 290 X H 421)",14,14,14,14,null,null,null,null,null,null,null,null,null,null,null,null,88,null,0.88,null,-0.88]
[null,"DEUXIEME CAHIER PAGES LOCALES NOIRES",null,null,null,null,null,null,null,null,null,null,null,null,null,null,null,null,null,null,null,null,null,null,null,null,null,null,89,null,0.89,null,-0.89]
[null,"Ecran de base (L 94 x H 66) noires",1,1,null,null,"EMPLACEMENTS PRIVILEGIES",null,null,null,null,"EMPLACEMENTS PRIVILEGIES",null,null,null,null,null,null,null,null,null,null,null,null,null,null,null,null,90,null,0.9,null,-0.9]
[null,"Double écran (L 94 x H 137) noires",2,2,null,null,"Corner de Une",1,1,null,null,"Corner de Une",1,1,null,null,null,null,null,null,null,null,null,null,null,null,null,null,91,null,0.91,null,-0.91]
[null,"Double écran (L 192 x H 66) noires",3,3,null,null,"Manchette de Une",2,2,null,null,"Manchette de Une",2,2,null,null,null,null,null,null,null,null,null,null,null,null,null,null,92,null,0.92,null,-0.92]
[null,"Bandeau (L 290 X H 66) noires",4,4,null,null,"Ecran de Une",3,3,null,null,"Ecran de Une",3,3,null,null,null,null,null,null,null,null,null,null,null,null,null,null,93,null,0.93,null,-0.93]
[null,"Demie-chandelle (L 94 X H 208) noires",5,5,null,null,"Bandeau de Une",4,4,null,null,"Bandeau de Une",4,4,null,null,null,null,null,null,null,null,null,null,null,null,null,null,94,null,0.94,null,-0.94]
[null,"4 x 4 (L 192 X H 137) noires",6,6,null,null,"4 x 4 page 2 ou 3 ou Der",5,5,null,null,"4 x 4 page 2, 3 ou page météo",5,5,null,null,null,null,null,null,null,null,null,null,null,null,null,null,95,null,0.95,null,-0.95]
[null,"Quart de page (L 143 X H 208) noires",7,7,null,null,"Double bandeau P3",6,6,null,null,"Double bandeau P3",6,6,null,null,null,null,null,null,null,null,null,null,null,null,null,null,96,null,0.96,null,-0.96]
[null,"Double bandeau (L 290 x H 137) noires",8,8,null,null,"Grand 6 page 4",7,7,null,null,"Grand 6 page 4",7,7,null,null,null,null,null,null,null,null,null,null,null,null,null,null,97,null,0.97,null,-0.97]
[null,"Grand 6 (L 192 X H 208) noires",9,9,null,null,"Chandelle page 4",8,8,null,null,"Chandelle page 4",8,8,null,null,null,null,null,null,null,null,null,null,null,null,null,null,98,null,0.98,null,-0.98]
[null,"Chandelle (L 94 X H 421) noires",10,10,null,null,"Demi-page page 4",9,9,null,null,"Demi-page page 4",9,9,null,null,null,null,null,null,null,null,null,null,null,null,null,null,99,null,0.99,null,-0.99]
[null,"Demi-page (L 290 X H 208) noires",11,11,null,null,"Double chandelle page 4",10,10,null,null,"Double chandelle page 4",10,10,null,null,null,null,null,null,null,null,null,null,null,null,null,null,100,null,1,null,-1]
[null,"Double chandelle (L 192 X H 421) noires",12,12,null,null,"Page 4",11,11,null,null,"Page 4",11,11,null,null,null,null,null,null,null,null,null,null,null,null,null,null,101,null,1.01,null,-1.01]
[null,"Page (L 290 X H 421) noires",13,13,null,null,"Double écran page 5",12,12,null,null,"Ecran de base page 5",12,12,null,null,null,null,null,null,null,null,null,null,null,null,null,null,102,null,1.02,null,-1.02]
[null,null,null,null,null,null,"4 x 4 page 5",13,13,null,null,"Double écran page 5",13,13,null,null,null,null,null,null,null,null,null,null,null,null,null,null,103,null,1.03,null,-1.03]
[null,"EMPLACEMENTS PRIVILEGIES PREMIER CAHIER",null,null,null,null,"Double bandeau page 5",14,14,null,null,null,null,null,null,null,null,null,null,null,null,null,null,null,null,null,null,null,104,null,1.04,null,-1.04]
[null,"Manchette de Une (L 69 x H 45) 1er",1,1,null,null,null,null,null,null,null,"PAGE TELEVISION",null,null,null,null,null,null,null,null,null,null,null,null,null,null,null,null,105,null,1.05,null,-1.05]
[null,"Duo de Une (L 92 x H 100) 1er",2,2,null,null,"PAGE TELEVISION",null,null,null,null,"Ecran",1,1,null,null,null,null,null,null,null,null,null,null,null,null,null,null,106,null,1.06,null,-1.06]
[null,"Quadro de Une (L 188 x H 100) 1er",3,3,null,null,"Ecran",1,1,null,null,"Double écran",1,1,null,null,null,null,null,null,null,null,null,null,null,null,null,null,107,null,1.07,null,-1.07]
[null,"Duo en Der",4,4,null,null,"Double écran",1,1,null,null,null,null,null,null,null,null,null,null,null,null,null,null,null,null,null,null,null,108,null,1.08,null,-1.08]
[null,"Quatro en Der",5,5,null,null,null,null,null,null,null,"HAUTS CANTONS",null,null,null,null,null,null,null,null,null,null,null,null,null,null,null,null,109,null,1.0900000000000001,null,-1.0900000000000001]
[null,null,null,null,null,null,null,null,null,null,null,"Ecran de base  (L 94 x H 66)",1,1,1,1,null,null,null,null,null,null,null,null,null,null,null,null,110,null,1.1000000000000001,null,-1.1000000000000001]
[null,"EMPLACEMENTS PRIVILEGIES DEUXIEME CAHIER",null,null,null,null,null,null,null,null,null,"Double écran  (L 94 x H 137)",2,2,2,2,null,null,null,null,null,null,null,null,null,null,null,null,111,null,1.1100000000000001,null,-1.1100000000000001]
[null,"Manchette de Une (L 69 x H 45)",1,1,null,null,null,null,null,null,null,"Double écran  (L 192 x H 66)",3,3,3,3,null,null,null,null,null,null,null,null,null,null,null,null,112,null,1.1200000000000001,null,-1.1200000000000001]
[null,"Duo de Une (L 92 x H 100)",2,2,null,null,null,null,null,null,null,"Bandeau  (L 290 X H 66)",4,4,4,4,null,null,null,null,null,null,null,null,null,null,null,null,113,null,1.1299999999999999,null,-1.1299999999999999]
[null,"Quadro de Une (L 188 x H 100)",3,3,null,null,null,null,null,null,null,"Demie-chandelle  (L 290 X H 66)",5,5,5,5,null,null,null,null,null,null,null,null,null,null,null,null,114,null,1.1399999999999999,null,-1.1399999999999999]
[null,"4 X 4 page 2 ou 3 (L 192 x H 137)",4,4,null,null,null,null,null,null,null,"4 x 4  (L 192 X H 137)",6,6,6,6,null,null,null,null,null,null,null,null,null,null,null,null,115,null,1.1499999999999999,null,-1.1499999999999999]
[null,"Double bandeau page 3 (L 290 x H137)",5,5,null,null,null,null,null,null,null,"Double bandeau  (L 290 X H 137)",7,7,7,7,null,null,null,null,null,null,null,null,null,null,null,null,116,null,1.1599999999999999,null,-1.1599999999999999]
[null,"Quart de page Der",6,6,null,null,null,null,null,null,null,"Grand 6  (L 192 X H 208)",8,8,8,8,null,null,null,null,null,null,null,null,null,null,null,null,117,null,1.17,null,-1.17]
[null,"Demi-page Der",7,7,null,null,null,null,null,null,null,"Chandelle  (L 94 X H 421)",9,9,9,9,null,null,null,null,null,null,null,null,null,null,null,null,118,null,1.18,null,-1.18]
[null,"Page Der",8,8,null,null,null,null,null,null,null,"Grand 8  (L 192 X H 279)",10,10,10,10,null,null,null,null,null,null,null,null,null,null,null,null,119,null,1.19,null,-1.19]
[null,null,null,null,null,null,null,null,null,null,null,"Demi-page  (L 290 X H 208)",11,11,11,11,null,null,null,null,null,null,null,null,null,null,null,null,120,null,1.2,null,-1.2]
[null,"DEUXIEME CAHIER PAGES SPORTS",null,null,null,null,null,null,null,null,null,"Double chandelle  (L 192 X H 421)",12,12,12,12,null,null,null,null,null,null,null,null,null,null,null,null,121,null,1.21,null,-1.21]
[null,"Ecran de base (L 94 x H 66) sports",1,1,null,null,null,null,null,null,null,"Page  (L 290 X H 421)",13,13,13,13,null,null,null,null,null,null,null,null,null,null,null,null,122,null,1.22,null,-1.22]
[null,"Double écran (L 94 x H 137) sports",2,2,null,null,null,null,null,null,null,null,null,null,null,null,null,null,null,null,null,null,null,null,null,null,null,null,123,null,1.23,null,-1.23]
[null,"Double écran (L 192 x H 66) sports",3,3,null,null,null,null,null,null,null,null,null,null,null,null,null,null,null,null,null,null,null,null,null,null,null,null,124,null,1.24,null,-1.24]
[null,"Bandeau (L 290 X H 66) sports",4,4,null,null,null,null,null,null,null,null,null,null,null,null,null,null,null,null,null,null,null,null,null,null,null,null,125,null,1.25,null,-1.25]
[null,"Demie-chandelle (L 94 X H 208) sports",5,5,null,null,null,null,null,null,null,null,null,null,null,null,null,null,null,null,null,null,null,null,null,null,null,null,126,null,1.26,null,-1.26]
[null,"4 x 4 (L 192 X H 137) sports",6,6,null,null,null,null,null,null,null,null,null,null,null,null,null,null,null,null,null,null,null,null,null,null,null,null,127,null,1.27,null,-1.27]
[null,"Quart de page (L 143 X H 208) sports",7,7,null,null,null,null,null,null,null,null,null,null,null,null,null,null,null,null,null,null,null,null,null,null,null,null,128,null,1.28,null,-1.28]
[null,"Grand 6 (L 192 X H 208) sports",8,8,null,null,null,null,null,null,null,null,null,null,null,null,null,null,null,null,null,null,null,null,null,null,null,null,129,null,1.29,null,-1.29]
[null," sportsDemi-page (L 290 X H 208)",9,9,null,null,null,null,null,null,null,null,null,null,null,null,null,null,null,null,null,null,null,null,null,null,null,null,130,null,1.3,null,-1.3]
[null,null,null,null,null,null,null,null,null,null,null,null,null,null,null,null,null,null,null,null,null,null,null,null,null,null,null,null,131,null,1.31,null,-1.31]
[null,"CARCASSONNE",null,null,null,null,"GARD",null,null,null,null,"HERAULT",null,null,null,null,null,null,null,null,null,null,null,null,null,null,null,null,132,null,1.32,null,-1.32]
[null,null,null,null,null,null,null,null,null,null,null,null,null,null,null,null,null,null,null,null,null,null,null,null,null,null,null,null,133,null,1.33,null,-1.33]
[null,"PAGES LOCALES",null,null,null,null,"PAGES LOCALES",null,null,null,null,"PAGES LOCALES",null,null,null,null,null,null,null,null,null,null,null,null,null,null,null,null,134,null,1.34,null,-1.34]
[null,"Ecran de base (L 94 x H 66)",1,1,null,null,"Ecran de base (L 94 x H 66)",1,1,null,null,"Ecran de base (L 94 x H 66)",1,1,null,null,null,null,null,null,null,null,null,null,null,null,null,null,135,null,1.35,null,-1.35]
[null,"Double écran (L 94 x H 137)",2,2,null,null,"Double écran (L 94 x H 137)",2,2,null,null,"Double écran (L 94 x H 137)",2,2,null,null,null,null,null,null,null,null,null,null,null,null,null,null,136,null,1.36,null,-1.36]
[null,"Double écran (L 192 x H 66)",3,3,null,null,"Double écran (L 192 x H 66)",3,3,null,null,"Double écran (L 192 x H 66)",3,3,null,null,null,null,null,null,null,null,null,null,null,null,null,null,137,null,1.37,null,-1.37]
[null,"Bandeau (L 290 X H 66)",4,4,null,null,"Bandeau (L 290 X H 66)",4,4,null,null,"Bandeau (L 290 X H 66)",4,4,null,null,null,null,null,null,null,null,null,null,null,null,null,null,138,null,1.38,null,-1.38]
[null,"Demie-chandelle (L 290 X H 66)",5,5,null,null,"Demie-chandelle (L 290 X H 66)",5,5,null,null,"4 x 4 (L 192 X H 137)",5,5,null,null,null,null,null,null,null,null,null,null,null,null,null,null,139,null,1.39,null,-1.39]
[null,"4 x 4 (L 192 X H 137)",6,6,null,null,"4 x 4 (L 192 X H 137)",6,6,null,null,"Quart de page (L 143 X H 208)",6,6,null,null,null,null,null,null,null,null,null,null,null,null,null,null,140,null,1.4,null,-1.4]
[null,"Quart de page (L 143 X H 208)",7,7,null,null,"Quart de page (L 143 X H 208)",7,7,null,null,"Double bandeau (L 290 X H 137)",7,7,null,null,null,null,null,null,null,null,null,null,null,null,null,null,141,null,1.41,null,-1.41]
[null,"Double bandeau (L 290 x H 137)",8,8,null,null,"Grand 6 (L 192 X H 208)",8,8,null,null,null,null,null,null,null,null,null,null,null,null,null,null,null,null,null,null,null,142,null,1.42,null,-1.42]
[null,"Grand 6 (L 192 X H 208)",9,9,null,null,"Chandelle (L 94 X H 421)",9,9,null,null,"EMPLACEMENTS PRIVILEGIES",null,null,null,null,null,null,null,null,null,null,null,null,null,null,null,null,143,null,1.43,null,-1.43]
[null,"Chandelle (L 94 X H 421)",10,10,null,null,"Grand 8 (L 192 X H 279)",10,10,null,null,"Manchette de Une",1,1,null,null,null,null,null,null,null,null,null,null,null,null,null,null,144,null,1.44,null,-1.44]
[null,"Grand 8 (L 192 X H 279)",11,11,null,null,"Demi-page (L 290 X H 208)",11,11,null,null,"Ecran de Une",2,2,null,null,null,null,null,null,null,null,null,null,null,null,null,null,145,null,1.45,null,-1.45]
[null,"Demi-page (L 290 X H 208)",12,12,null,null,"Double chandelle (L 192 X H 421)",12,12,null,null,"Bandeau de Une",3,3,null,null,null,null,null,null,null,null,null,null,null,null,null,null,146,null,1.46,null,-1.46]
[null,"Double chandelle (L 192 X H 421)",13,13,null,null,"Page (L 290 X H 421)",13,13,null,null,"4 x 4 page 2 ou 3 ou Der",4,4,null,null,null,null,null,null,null,null,null,null,null,null,null,null,147,null,1.47,null,-1.47]
[null,"Page (L 290 X H 421)",14,14,null,null,null,null,null,null,null,"Double bandeau P3",5,5,null,null,null,null,null,null,null,null,null,null,null,null,null,null,148,null,1.48,null,-1.48]
[null,null,null,null,null,null,"EMPLACEMENTS PRIVILEGIES",null,null,null,null,"Grand 6 page 4",6,6,null,null,null,null,null,null,null,null,null,null,null,null,null,null,149,null,1.49,null,-1.49]
[null,"EMPLACEMENTS PRIVILEGIES",null,null,null,null,"Corner de Une",1,1,null,null,"Chandelle page 4",7,7,null,null,null,null,null,null,null,null,null,null,null,null,null,null,150,null,1.5,null,-1.5]
[null,"Manchette de Une",1,1,null,null,"Manchette de Une",2,2,null,null,"Demi-page page 4",8,8]
[null,"Ecran de Une",2,2,null,null,"Ecran de Une",3,3,null,null,"Double chandelle page 4",9,9]
[null,"Bandeau de Une",3,3,null,null,"Bandeau de Une",4,4,null,null,"Page 4",10,10]
[null,"4 x 4 page 2, 3 ou Der",4,4,null,null,"4 x 4 page 2, 3 ou Der",5,5]
[null,"Double bandeau P3",5,5,null,null,"Double bandeau P3",6,6,null,null,"PAGE TELEVISION"]
[null,"Corner de Une",6,6,null,null,"Grand 6 page 4",7,7,null,null,"Ecran",1,1]
[null,"Grand 6 page 4",7,7,null,null,"Chandelle page 4",8,8,null,null,"Double écran",1,1]
[null,"Chandelle page 4",8,8,null,null,"Demi-page page 4",9,9]
[null,"Demi-page page 4",9,9,null,null,"Double chandelle page 4",10,10,null,null,"CAHIER SPORT Midi Libre SPORTS"]
[null,"Double chandelle page 4",10,10,null,null,"Page 4",11,11,null,null,"Bandeau de Une Sports",1]
[null,"Page 4",11,11,null,null,"Double écran page 5",12,12]
[null,"Ecran de base page 5",12,12,null,null,"4 x 4 page 5",13,13,null,null,"MIDI ECONOMIE"]
[null,"Double écran page 5",13,13,null,null,"Double bandeau P5",14,14,null,null,"Bandeau de Une Economie",1,1]
[null,"Bandeau page 5",14,14,null,null,null,null,null,null,null,"Grand 8",2,2]
[null,"4 x 4 page 5",15,15,null,null,"PAGE TELEVISION",null,null,null,null,"Demi-page",3,3]
[null,null,null,null,null,null,"Ecran",1,1]
[null,"PAGE SPECTACLES - CINEMA",null,null,null,null,"Double écran",1,1]
[null,"Ecran de base",1,1]
[null,"Double écran",2,2,null,null,"CAHIER SPORT Midi Libre SPORTS"]
[null,"Bandeau",3,3,null,null,"Bandeau de Une SPORT",1]
[null,"4 x 4",4,4]
[null,null,null,null,null,null,"PAGE LOISIRS"]
[null,null,null,null,null,null,"Double écran  LOISIRS (L 192 x H 66)",1,1]
[]
[null,null,null,null,null,null,"MIDI ECONOMIE"]
[null,null,null,null,null,null,"Bandeau Economie",1,1]
[null,null,null,null,null,null,"Grand 8",2,2]
[null,null,null,null,null,null,"Demi-page",3,3]
[]
[null,"LODEVE",null,null,null,null,"LOZERE",null,null,null,null,"LUNEL"]
[]
[null,"PAGES LOCALES",null,null,null,null,"PAGES LOCALES",null,null,null,null,"PAGES LOCALES"]
[null,"Demi écran (L 45 x H 66)",1,1,null,null,"Ecran de base (L 94 x H 66)",1,1,null,null,"Ecran de base (L 94 x H 66)",1,1]
[null,"Demi écran (L 94 x H 33)",2,2,null,null,"Double écran (L 94 x H 137)",2,2,null,null,"Double écran (L 94 x H 137)",2,2]
[null,"Ecran de base (L 94 x H 66)",3,3,null,null,"Double écran (L 192 x H 66)",3,3,null,null,"Double écran (L 192 x H 66)",3,3]
[null,"Double écran (L 94 x H 137)",4,4,null,null,"Bandeau (L 290 X H 66)",4,4,null,null,"Bandeau (L 290 X H 66)",4,4]
[null,"Double écran (L 192 x H 66)",5,5,null,null,"Demie-chandelle (L 290 X H 66)",5,5,null,null,"Demie-chandelle (L 290 X H 66)",5,5]
[null,"Bandeau (L 290 X H 66)",6,6,null,null,"4 x 4 (L 192 X H 137)",6,6,null,null,"4 x 4 (L 192 X H 137)",6,6]
[null,"4 x 4 (L 192 X H 137)",7,7,null,null,"Quart de page (L 143 X H 208)",7,7,null,null,"Quart de page (L 143 X H 208)",7,7]
[null,"Grand 6 (L 192 X H 208)",8,8,null,null,"Double bandeau (L 290 x H 137)",8,8,null,null,"Double bandeau (L 290 x H 137)",8,8]
[null,null,null,null,null,null,"Grand 6 (L 192 X H 208)",9,9,null,null,"Grand 6 (L 192 X H 208)",9,9]
[null,"EMPLACEMENTS PRIVILEGIES EDITION LODEVE",null,null,null,null,"Chandelle (L 94 X H 421)",10,10,null,null,"Chandelle (L 94 X H 421)",10,10]
[null,"Manchette de Une",1,1,null,null,"Grand 8 (L 192 X H 279)",11,11,null,null,"Grand 8 (L 192 X H 279)",11,11]
[null,"Ecran de Une",2,2,null,null,"Demi-page (L 290 X H 208)",12,12,null,null,"Demi-page (L 290 X H 208)",12,12]
[null,"Bandeau de Une",3,3,null,null,"Double chandelle (L 192 X H 421)",13,13,null,null,"Double chandelle (L 192 X H 421)",13,13]
[null,"4 x 4 page 2 ou 3",4,4,null,null,"Page (L 290 X H 421)",14,14,null,null,"Page (L 290 X H 421)",14,14]
[null,"Double bandeau P3",5,5]
[null,null,null,null,null,null,"EMPLACEMENTS PRIVILEGIES",null,null,null,null,"EMPLACEMENTS PRIVILEGIES"]
[null,"EMPLACEMENTS PRIVILEGIES EDITION Montpellier région + Lodève",null,null,null,null,"Manchette de Une",1,1,null,null,"Manchette de Une",1,1]
[null,"Double écran page 5",1,1,null,null,"Ecran de Une",2,2,null,null,"Ecran de Une",2,2]
[null,"4 x 4 page 5",2,2,null,null,"Bandeau de Une",3,3,null,null,"Bandeau de Une",3,3]
[null,"Double bandeau P5",3,3,null,null,"4 x 4 page 2, 3 ou météo",4,4,null,null,"4 x 4 page 2, 3 ou météo",4,4]
[null,"Grand 6 page 4",4,4,null,null,"Double bandeau P3",5,5,null,null,"Double bandeau P3",5,5]
[null,"Chandelle page 4",5,5,null,null,"4 x 4 page 4",6,6,null,null,"Grand 6 page 4",6,6]
[null,"Demi-page page 4",6,6,null,null,"Grand 6 page 4",7,7,null,null,"Chandelle page 4",7,7]
[null,"Double chandelle page 4",7,7,null,null,"Chandelle page 4",8,8,null,null,"Demi-page page 4",8,8]
[null,"Page 4",8,8,null,null,"Demi-page page 4",9,9,null,null,"Double chandelle page 4",9,9]
[null,null,null,null,null,null,"Double chandelle page 4",10,10,null,null,"Page 4",10,10]
[null,"PAGE LOISIRS TOUS LES JOURS SAUF LUNDI",null,null,null,null,"Page 4",11,11]
[null,"Double écran sauf lundi",1,null,null,null,"Ecran page 5",12,12,null,null,"PAGE TELEVISION"]
[null,null,null,null,null,null,"Double écran page 5",13,13,null,null,"Ecran",1,1]
[null,"PAGE TELEVISION",null,null,null,null,null,null,null,null,null,"Double écran",1,1]
[null,"Ecran",1,1,null,null,"CAHIER SPORTS - MIDI LIBRE SPORTS - LUNDI UNIQUEMENT"]
[null,"Double écran tv",1,1,null,null,"Bandeau de Une sports",1,null,null,null,"PAGE LOISIR SAUF LUNDI"]
[null,null,null,null,null,null,null,null,null,null,null,"Double écran sauf lundi",1]
[null,null,null,null,null,null,"PAGE TELEVISION LOZERE + AVEYRON MIDI LIBRE SEUL"]
[null,null,null,null,null,null,"Ecran",1,1]
[null,null,null,null,null,null,"Double écran",1,1]
[]
[null,"MILLAU",null,null,null,null,"MONTPELLIER REGION",null,null,null,null,null,"NARBONNE"]
[]
[null,"PAGES LOCALES",null,null,null,null,"PAGES LOCALES ET VILLAGES",null,null,null,null,null,"PAGES LOCALES"]
[null,"Ecran de base (L 94 x H 66)",1,1,null,null,"Ecran de base (L 94 x H 66)",1,1,1,1,null,"Ecran de base (L 94 x H 66)",1,1]
[null,"Double écran (L 94 x H 137)",2,2,null,null,"Double écran (L 94 x H 137)",2,2,2,2,null,"Double écran (L 94 x H 137)",2,2]
[null,"Double écran (L 192 x H 66)",3,3,null,null,"Double écran (L 192 x H 66)",3,3,3,3,null,"Double écran (L 192 x H 66)",3,3]
[null,"Bandeau (L 290 X H 66)",4,4,null,null,"Bandeau (L 290 X H 66)",4,4,4,4,null,"Bandeau (L 290 X H 66)",4,4]
[null,"Demie-chandellle (L 94 x H 208)",5,5,null,null,"Demie-chandelle (L 290 X H 66)",5,5,5,5,null,"Demie-chandelle (L 290 X H 66)",5,5]
[null,"4 x 4 (L 192 X H 137)",6,6,null,null,"4 x 4 (L 192 X H 137)",6,6,6,6,null,"4 x 4 (L 192 X H 137)",6,6]
[null,"Quart de page (L 143 X H 208)",7,7,null,null,"Quart de page (L 143 X H 208)",7,7,7,7,null,"Quart de page (L 143 X H 208)",7,7]
[null,"Double bandeau (L 290 X H 137)",8,8,null,null,"Double bandeau (L 290 X H 137)",8,8,8,8,null,"Double bandeau (L 290 x H 137)",8,8]
[null,"Grand 6 (L 192 X H 208)",9,9,null,null,"Grand 6 (L 192 X H 208)",9,9,9,9,null,"Grand 6 (L 192 X H 208)",9,9]
[null,"Chandelle (L 94 X H 421)",10,10,null,null,"Chandelle (L 94 X H 421)",10,10,10,10,null,"Chandelle (L 94 X H 421)",10,10]
[null,"Grand 8 (L 192 X H 279)",11,11,null,null,"Grand 8 (L 192 X H 279)",11,11,11,11,null,"Grand 8 (L 192 X H 279)",11,11]
[null,"Demi-page (L 290 X H 208)",12,12,null,null,"Demi-page (L 290 X H 208)",12,12,12,12,null,"Demi-page (L 290 X H 208)",12,12]
[null,"Double chandelle (L 192 X H 421)",13,13,null,null,"Double chandelle (L 192 X H 421)",13,13,13,13,null,"Double chandelle (L 192 X H 421)",13,13]
[null,"Page (L 290 X H 421)",14,14,null,null,"Page (L 290 X H 421)",14,14,14,14,null,"Page (L 290 X H 421)",14,14]
[]
[null,"EMPLACEMENTS PRIVILEGIES",null,null,null,null,"EMPLACEMENTS PRIVILEGIES PAGES LOCALES MONTPELLIER REGION",null,null,null,null,null,"EMPLACEMENTS PRIVILEGIES"]
[null,"Corner de Une",1,1,null,null,"Corner de Une",1,1,null,null,null,"Corner de Une",1,1]
[null,"Manchette de Une",2,2,null,null,"Manchette de Une",2,2,null,null,null,"Manchette de Une",2,2]
[null,"Ecran de Une",3,3,null,null,"Ecran de Une",3,3,null,null,null,"Ecran de Une",3,3]
[null,"Bandeau de Une",4,4,null,null,"Bandeau de Une",4,4,null,null,null,"Bandeau de Une",4,4]
[null,"4 x 4 page 2 ou 3 ou météo",5,5,null,null,"4 x 4 page 2,3 ou Der",5,5,null,null,null,"4 x 4 page 2, 3 ou Der",5,5]
[null,"Double bandeau P3",6,6,null,null,"Double bandeau P3",6,6,null,null,null,"Double bandeau P3",6,6]
[null,"4 x 4 page 4",7,7,null,null,null,null,null,null,null,null,"Grand 6 page 4",7,7]
[null,"Grand 6 page 4",8,8,null,null,"EMPLACEMENTS PRIVILEGIES MONTPELLIER REGION + LODEVE",null,null,null,null,null,"Chandelle page 4",8,8]
[null,"Chandelle page 4",9,9,null,null,"Double écran page 5",1,1,null,null,null,"Demi-page page 4",9,9]
[null,"Demi-page page 4",10,10,null,null,"4 x 4 page 5",2,2,null,null,null,"Double chandelle page 4",10,10]
[null,"Double chandelle page 4",11,11,null,null,"Double bandeau page 5",3,3,null,null,null,"Page 4",11,11]
[null,"Page 4",12,12,null,null,"Grand 6 page 4",4,4,null,null,null,"Ecran de base page 5",12,12]
[null,null,null,null,null,null,"Chandelle page 4",5,5,null,null,null,"Double écran page 5",13,13]
[null,null,null,null,null,null,"Demi-page page 4",6,6,null,null,null,"Bandeau page 5",14,14]
[null,null,null,null,null,null,"Double chandelle page 4",7,7,null,null,null,"4 x 4 page 5",15,15]
[null,null,null,null,null,null,"Page 4",8,8]
[]
[null,null,null,null,null,null,"PAGE LOISIRS sauf lundi"]
[null,null,null,null,null,null,"Double écran (sauf lundi)",1]
[]
[null,"NIMES",null,null,null,null,null,"PO",null,null,null,null,null,"RODEZ"]
[]
[null,"PAGES LOCALES ET VILLAGES",null,null,null,null,null,"PAGES LOCALES NOIRES",null,null,null,null,null,"PAGES LOCALES ET VILLAGES"]
[null,"Ecran de base (L 94 x H 66)",1,1,1,1,null,"Ecran de base (L 94 x H 66) noires",1,1,null,null,null,"Ecran de base (L 94 x H 66)",1,1,1,1]
[null,"Double écran (L 94 x H 137)",2,2,2,2,null,"Double écran (L 94 x H 137) noires",2,2,null,null,null,"Double écran (L 94 x H 137)",2,2,2,2]
[null,"Double écran (L 192 x H 66)",3,3,3,3,null,"Double écran (L 192 x H 66) noires",3,3,null,null,null,"Double écran (L 192 x H 66)",3,3,3,3]
[null,"Bandeau (L 290 X H 66)",4,4,4,4,null,"Bandeau (L 290 X H 66) noires",4,4,null,null,null,"Bandeau (L 290 X H 66)",4,4,4,4]
[null,"Demie-chandelle (L 290 X H 66)",5,5,5,5,null,"Demie-chandelle (L 290 X H 66) noires",5,5,null,null,null,"Demie-chandelle (L 290 X H 66)",5,5,5,5]
[null,"4 x 4 (L 192 X H 137)",6,6,6,6,null,"4 x 4 (L 192 X H 137) noires",6,6,null,null,null,"4 x 4 (L 192 X H 137)",6,6,6,6]
[null,"Quart de page (L 143 X H 208)",7,7,7,7,null,"Grand 6 (L 192 X H 208) noires",7,7,null,null,null,"Quart de page (L 143 X H 208)",7,7,7,7]
[null,"Double bandeau (L 290 X H 137)",8,8,8,8,null,"Chandelle (L 94 X H 421) noires",8,8,null,null,null,"Double bandeau (L 290 X H 137)",8,8,8,8]
[null,"Grand 6 (L 192 X H 208)",9,9,9,9,null,"Demi-page (L 290 X H 208) noires",9,9,null,null,null,"Grand 6 (L 192 X H 208)",9,9,9,9]
[null,"Chandelle (L 94 X H 421)",10,10,10,10,null,"Double chandelle (L 192 X H 421) noires",10,10,null,null,null,"Chandelle (L 94 X H 421)",10,10,10,10]
[null,"Grand 8 (L 192 X H 279)",11,11,11,11,null,"Page (L 290 X H 421) noires",11,11,null,null,null,"Grand 8 (L 192 X H 279)",11,11,11,11]
[null,"Demi-page (L 290 X H 208)",12,12,12,12,null,null,null,null,null,null,null,"Demi-page (L 290 X H 208)",12,12,12,12]
[null,"Double chandelle (L 192 X H 421)",13,13,13,13,null,"PAGES LOCALES QUADRI",null,null,null,null,null,"Double chandelle (L 192 X H 421)",13,13,13,13]
[null,"Page (L 290 X H 421)",14,14,14,14,null,"Ecran de base (L 94 x H 66) quadri",1,1,null,null,null,"Page (L 290 X H 421)",14,14,14,14]
[null,null,null,null,null,null,null,"Double écran (L 94 x H 137) quadri",2,2]
[null,"EMPLACEMENTS PRIVILEGIES",null,null,null,null,null,"Double écran (L 192 x H 66) quadri",3,3,null,null,null,"EMPLACEMENTS PRIVILEGIES PAGES LOCALES OU DER"]
[null,"Corner de Une",1,1,null,null,null,"Bandeau (L 290 X H 66) quadri",4,4,null,null,null,"Totem de une",1,1]
[null,"Manchette de Une",2,2,null,null,null,"Demie-chandelle (L 290 X H 66) quadri",5,5,null,null,null,"Corner de Une",2,2]
[null,"Ecran de Une",3,3,null,null,null,"4 x 4 (L 192 X H 137) quadri",6,6,null,null,null,"Manchette de Une",3,3]
[null,"Bandeau de Une",4,4,null,null,null,"Quart de page (L 143 X H 208) quadri",7,7,null,null,null,"Bandeau de Une",4,4]
[null,"4 x 4 page 2,3,4,5 ou météo",5,5,null,null,null,"Double bandeau (L 290 X H 137) quadri",8,8,null,null,null,"4 x 4 page 2,3 ou Der",5,5]
[null,"Double bandeau P3 ou P5",6,6,null,null,null,"Grand 6 (L 192 X H 208) quadri",9,9,null,null,null,"Double bandeau P3",6,6]
[null,"Double écran page 5",7,7,null,null,null,"Chandelle (L 94 X H 421) quadri",10,10,null,null,null,"Top de Une le mercredi",7,7]
[null,"Grand 6 page 4",8,8,null,null,null,"Grand 8 (L 192 X H 279) quadri",11,11,null,null,null,"Dernière page 4 x 4",8,8]
[null,"Chandelle page 4",9,9,null,null,null,"Demi-page (L 290 X H 208) quadri",12,12,null,null,null,"Page entière ",9,9]
[null,"Demi-page page 4",10,10,null,null,null,"Double chandelle (L 192 X H 421) quadri",13,13,null,null,null,"Dernière page premier cahier bandeau (CPA)",10,10]
[null,"Double chandelle page 4",11,11,null,null,null,"Page (L 290 X H 421) quadri",14,14,null,null,null,"Une deuxième cahier bandeau",11,11]
[null,"Page 4",12,12]
[null,null,null,null,null,null,null,"EMPLACEMENTS PRIVILEGIES",null,null,null,null,null,"EMPLACEMENTS PRIVILEGIES PAGES LOCALES"]
[null,"PAGE TELEVISION",null,null,null,null,null,"Manchette de Une",1,1,null,null,null,"Grand 6 page 4",1,1]
[null,"Ecran",1,1,null,null,null,"Ecran de Une",2,2,null,null,null,"Chandelle page 4",2,2]
[null,"Double écran",1,1,null,null,null,"Bandeau de Une",3,3,null,null,null,"Demi-page page 4",3,3]
[null,null,null,null,null,null,null,"4 x 4 page 2, 3 ou météo",4,4,null,null,null,"Double chandelle page 4",4,4]
[null,"PAGE LOISIRS sauf lundi",null,null,null,null,null,"Double bandeau P3",5,5,null,null,null,"Page 4",5,5]
[null,"Double écran (sauf lundi)",1,null,null,null,null,"Grand 6 page 4, 6 ou 7",6,6,null,null,null,"4 x 4 page 4",6,6]
[null,null,null,null,null,null,null,"Chandelle page 4",7,7]
[null,"CAHIER SPORTS LE LUNDI",null,null,null,null,null,"Demi-page page 4",8,8]
[null,"Bandeau de Une sports",1,null,null,null,null,"Double chandelle page 4",9,9]
[null,null,null,null,null,null,null,"Page 4",10,10]
[null,null,null,null,null,null,null,"Ecran de base page 5",11,11]
[null,"SETE",null,null,null,null,null,"Double écran page 5",12,12,null,null,null,"DIRECT MATIN"]
[null,null,null,null,null,null,null,"Bandeau page 5",13,13]
[null,"PAGES LOCALES ET VILLAGES",null,null,null,null,null,"4 x 4 page 5, 6 ou 7",14,14,null,null,null,"FORMATS"]
[null,"Ecran de base (L 94 x H 66)",1,1,null,null,null,"Double bandeau page 6 ou 7",15,15,null,null,null,"Page",1,1]
[null,"Double écran (L 94 x H 137)",2,2,null,null,null,"Corner de Une Ne peut-être vendu seul",16,16,null,null,null,"Demi-page",2,2]
[null,"Double écran (L 192 x H 66)",3,3,null,null,null,null,null,null,null,null,null,"Double écran",3,3]
[null,"Bandeau (L 290 X H 66)",4,4,null,null,null,"PAGE TETE DE VILLAGE L'INDEPENDANT SEUL",null,null,null,null,null,"Ecran de base",4,4]
[null,"Demie-chandelle (L 290 X H 66)",5,5,null,null,null,"Ecran indep",null,null,1,1,null,"Centrale panoramique",5,5]
[null,"4 x 4 (L 192 X H 137)",6,6,null,null,null,"Double écran indep",null,null,2,2]
[null,"Quart de page (L 143 X H 208)",7,7,null,null,null,"Bandeau indep",null,null,3,3,null,"EMPLACEMENTS PRIVILEGIES PAGES LOCALES MONTPELLIER REGION"]
[null,"Double bandeau (L 290 X H 137)",8,8,null,null,null,null,null,null,null,null,null,"Bandeau de Une",1,1]
[null,"Grand 6 (L 192 X H 208)",9,9,null,null,null,"PAGE SPECTACLES CINEMA",null,null,null,null,null,"3 ème de couverture",2,2]
[null,"Chandelle (L 94 X H 421)",10,10,null,null,null,"Ecran de base",1,1,null,null,null,"4 ème de couverture",3,3]
[null,"Grand 8 (L 192 X H 279)",11,11,null,null,null,"Double écran ",2,2]
[null,"Demi-page (L 290 X H 208)",12,12,null,null,null,"Bandeau",3,3,null,null,null,"PAGE JEUX / DETENTE MODULE DETENTE"]
[null,"Double chandelle (L 192 X H 421)",13,13,null,null,null,"4 x 4",4,4,null,null,null,"Pavé mots croisés",1]
[null,"Page (L 290 X H 421)",14,14]
[null,null,null,null,null,null,null,"ROUSSILLON GOURMAND - L'INDEPENDANT SEUL - PARUTION LE SAMEDI",null,null,null,null,null,"STIKER"]
[null,"EMPLACEMENTS PRIVILEGIES PAGES LOCALES MONTPELLIER REGION",null,null,null,null,null,"Ecran de base samedi",null,1,1,null,null,"Type A",1]
[null,"Manchette de Une",1,1,null,null,null,"Double écran samedi",null,2,2,null,null,"Type B",1]
[null,"Ecran de Une",2,2,null,null,null,"1/2 chandelle samedi",null,3,3]
[null,"Bandeau de Une",3,3,null,null,null,null,null,null,null,null,null,"SUR - COUVERTURE"]
[null,"4 x 4 page 2, 3 ou météo",4,4,null,null,null,"PAGE TELEVISION",null,null,null,null,null,"4 pages parution possible le jeudi",1,1]
[null,"Double bandeau P3",5,5,null,null,null,"Ecran tv",1,1,null,null,null,"3 pages parution possible le lundi et jeudi",2,2]
[null,"Grand 6 page 4",6,6,null,null,null,"Double écran tv",2,2,null,null,null,"2 pages 1 + 2, parution possible le lundi et jeudi",3,3]
[null,"Chandelle page 4",7,7]
[null,"Demi-page page 4",8,8,null,null,null,"PAGE ECONOMIE - L'INDEPENDANT SEUL - LE MARDI"]
[null,"Double chandelle page 4",9,9,null,null,null,"Bandeau éco le mardi",1]
[null,"Page 4",10,10]
[null,null,null,null,null,null,null,"PAGE BOL D'AIR- L'INDEPENDANT SEUL - SAMEDI OU DIMANCHE"]
[null,"PAGE TELEVISION",null,null,null,null,null,"Double écran samedi ou dimanche",null,1]
[null,"Ecran",1,1]
[null,"Double écran",2,2]
[]
[null,"PAGE LOISIRS sauf lundi"]
[null,"Double écran (sauf lundi)",1,2]
[]
[]
[null,"TOUTES EDITIONS"]
[]
[null,"PAGES INFORMATIONS GENERALES MIDI LIBRE"]
[null,"4 x 4 ML",1,1]
[null,"Grand 8 ML",2,2]
[null,"Demi-page ML",3,3]
[null,"Page ML",4,4]
[]
[null,"PAGES INFORMATIONS GENERALES MIDI LIBRE + INDEP"]
[null,"4 x 4 ML + INDEP",1,1]
[null,"Grand 8 ML + INDEP",2,2]
[null,"Demi-page ML + INDEP",3,3]
[null,"Page ML + INDEP",4,4]
[]
[null,"PAGES INFORMATIONS GENERALES MIDI LIBRE + INDEP + CPA"]
[null,"4 x 4 ML + INDEP + CPA",1,1]
[null,"Grand 8 ML + INDEP + CPA",2,2]
[null,"Demi-page ML + INDEP + CPA",3,3]
[null,"Page ML + INDEP + CPA",4,4]
[]
[null,"PAGES SPORTS MIDI LIBRE"]
[null,"Double écran (L 94 x H 137) ML",1,1]
[null,"Double écran (L 192 x H 66)  ML",2,2]
[null,"Bandeau (L 290 X H 66)  ML",3,3]
[null,"Demie-chandelle (L 94 X H 208)  ML",4,4]
[null,"4 x 4 (L 192 X H 137)  ML",5,5]
[null,"Grand 6 (L 192 X H 208)  ML",6,6]
[null,"Chandelle (L 94 X H 421)  ML",7,7]
[null,"Demi-page (L 290 X H 208)  ML",8,8]
[null,"Page (L 290 X H 421)  ML",9,9]
[]
[null,"PAGES SPORTS MIDI LIBRE + INDEP"]
[null,"Double écran (L 94 x H 137)  ML + INDEP",1,1]
[null,"Double écran (L 192 x H 66)  ML + INDEP",2,2]
[null,"Bandeau (L 290 X H 66)  ML + INDEP",3,3]
[null,"Demie-chandelle (L 94 X H 208)  ML + INDEP",4,4]
[null,"4 x 4 (L 192 X H 137)  ML + INDEP",5,5]
[null,"Grand 6 (L 192 X H 208)  ML + INDEP",6,6]
[null,"Chandelle (L 94 X H 421)  ML + INDEP",7,7]
[null,"Demi-page (L 290 X H 208)  ML + INDEP",8,8]
[null,"Page (L 290 X H 421)  ML + INDEP",9,9]
[]
[null,"PAGES SPORTS MIDI LIBRE + INDEP + CPA"]
[null,"Double écran (L 94 x H 137)  ML + INDEP + CPA",1,1]
[null,"Double écran (L 192 x H 66)  ML + INDEP + CPA",2,2]
[null,"Bandeau (L 290 X H 66)  ML + INDEP + CPA",3,3]
[null,"Demie-chandelle (L 94 X H 208)  ML + INDEP + CPA",4,4]
[null,"4 x 4 (L 192 X H 137)  ML + INDEP + CPA",5,5]
[null,"Grand 6 (L 192 X H 208)  ML + INDEP + CPA",6,6]
[null,"Chandelle (L 94 X H 421)  ML + INDEP + CPA",7,7]
[null,"Demi-page (L 290 X H 208)  ML + INDEP + CPA",8,8]
[null,"Page (L 290 X H 421)  ML + INDEP + CPA",9,9]
[]
[null,"PAGE TELEVISION MIDI LIBRE + INDEP"]
[null,"Ecran",1,2654.08]
[null,"Double écran",2,4695.68]
[]
[null,"PAGE TELEVISION MIDI LIBRE SEUL"]
[null,"Ecran ML",1,1960.92]
[null,"Double écran ML",2,3469.32]
[]
[null,"CAHIER SPORT UNIQUEMENT MIDI LIBRE LE LUNDI"]
[null,"Bandeau de Une toutes éditions",1]
[null,"Bandeau de Une Aude PO Lozère Alès Bagnols",1]
[]
[null,"MIDI ECONOMIE mardi uniquement Midi Libre"]
[null,"Bandeau éco",1,1]
[null,"Grand 8 éco",2,2]
[null,"Demi-page éco",3,3]
[]
[null,"THEMATIQUE MIDI SHOPPING VOTRE VIE Midi Libre uniquement"]
[null,"Double écran hauteur",null,1]